[Event "Gibraltar Masters 18th"]
[Site "Gibraltar"]
[Date "2020.01.21"]
[Round "1.50"]
[White "Lalith, Babu M R"]
[Black "Pratyusha, Bodda"]
[Result "1-0"]
[ECO "D38"]
[WhiteElo "2558"]
[BlackElo "2267"]
[PlyCount "81"]
[EventDate "2020.01.21"]
[EventType "swiss"]
[EventRounds "10"]
[EventCountry "GGB"]
[SourceTitle "BritBase"]
[Source "John Saunders"]
[SourceDate "2021.06.05"]
[SourceVersion "1"]
[SourceVersionDate "2021.06.05"]
[SourceQuality "1"]
[TimeControl "40/100:0"]
[WhiteClock "0:19:40"]
[BlackClock "0:02:36"]

1. d4 {[%emt 0:00:00]} d5 {[%emt 0:00:00]} 2. Nf3 {[%emt 0:00:00]} Nf6 {
[%emt 0:00:00]} 3. c4 {[%emt 0:00:00]} e6 {[%emt 0:00:00]} 4. Nc3 {[%emt 0:00:
00]} Bb4 {[%emt 0:00:00]} 5. Bg5 {[%emt 0:00:00]} h6 {[%emt 0:00:00]} 6. Bxf6 {
[%emt 0:00:00]} Qxf6 {[%emt 0:00:00]} 7. Qa4+ {[%emt 0:00:00]} Nc6 {[%emt 0:00:
00]} 8. e3 {[%emt 0:00:00]} O-O {[%emt 0:00:00]} 9. Rd1 {[%emt 0:00:00]} Qg6 {
[%emt 0:00:00]} 10. g3 {[%emt 0:00:00]} dxc4 {[%emt 0:00:00]} 11. Bg2 {[%emt 0:
00:00]} Bd7 {[%emt 0:00:00]} 12. O-O {[%emt 0:00:00]} Qh5 {[%emt 0:00:00]} 13.
Qc2 {[%emt 0:00:00]} Bxc3 {[%emt 0:00:00]} 14. Qxc3 {[%emt 0:00:00]} b5 {
[%emt 0:00:00]} 15. b3 {[%emt 0:00:00]} cxb3 {[%emt 0:00:00]} 16. Ne5 {[%emt 0:
00:00]} Nxe5 {[%emt 0:00:00]} 17. dxe5 {[%emt 0:00:00]} b4 {[%emt 0:00:00]} 18.
Qc5 {[%emt 0:00:00]} Rab8 {[%emt 0:00:00]} 19. axb3 {[%emt 0:00:00]} Bb5 {
[%emt 0:00:00]} 20. Rfe1 {[%emt 0:00:00]} a6 {[%emt 0:00:00]} 21. Rd4 {[%emt 0:
00:00]} f6 {[%emt 0:00:00]} 22. Qxc7 {[%emt 0:00:00]} fxe5 {[%emt 0:00:00]} 23.
Rd2 {[%emt 0:00:00]} Qf5 {[%emt 0:00:00]} 24. Rc1 {[%emt 0:00:00]} e4 {[%emt 0:
00:00]} 25. Rc5 {[%emt 0:00:00]} Rb7 {[%emt 0:00:00]} 26. Qd6 {[%emt 0:00:00]}
Qg4 {[%emt 0:00:00]} 27. h3 {[%emt 0:00:00]} Qg6 {[%emt 0:00:00]} 28. Qe5 {
[%emt 0:00:00]} Bd3 {[%emt 0:00:00]} 29. h4 {[%emt 0:00:00]} Rb5 {[%emt 0:00:
00]} 30. Rxb5 {[%emt 0:00:00]} axb5 {[%emt 0:00:00]} 31. Bh3 {[%emt 0:00:00]}
Re8 {[%emt 0:00:00]} 32. Ra2 {[%emt 0:00:00]} Qf6 {[%emt 0:00:00]} 33. Qd6 {
[%emt 0:00:00]} Qe7 {[%emt 0:00:00]} 34. Qc6 {[%emt 0:00:00]} Qf7 {[%emt 0:00:
00]} 35. Ra7 {[%emt 0:00:00]} Qxa7 {[%emt 0:00:00]} 36. Qxe8+ {[%emt 0:00:00]}
Kh7 {[%emt 0:00:00]} 37. Bxe6 {[%emt 0:00:00]} Qa1+ {[%emt 0:00:00]} 38. Kh2 {
[%emt 0:00:00]} Qf6 {[%emt 0:00:00]} 39. Bg8+ {[%emt 0:00:00]} Kh8 {[%emt 0:00:
00]} 40. Bf7+ {[%emt 0:00:00]} Kh7 {[%emt 0:00:00]} 41. Qg8# {[%emt 0:00:00]}
1-0

[Event "Gibraltar Masters 18th"]
[Site "Gibraltar"]
[Date "2020.01.21"]
[Round "1.51"]
[White "Rakshitta, Ravi"]
[Black "Maze, Sebastien"]
[Result "0-1"]
[ECO "A05"]
[WhiteElo "2267"]
[BlackElo "2550"]
[PlyCount "74"]
[EventDate "2020.01.21"]
[EventType "swiss"]
[EventRounds "10"]
[EventCountry "GGB"]
[SourceTitle "BritBase"]
[Source "John Saunders"]
[SourceDate "2021.06.05"]
[SourceVersion "1"]
[SourceVersionDate "2021.06.05"]
[SourceQuality "1"]
[TimeControl "40/100:0"]
[WhiteClock "0:06:54"]
[BlackClock "0:27:45"]

1. Nf3 {[%emt 0:00:00]} Nf6 {[%emt 0:00:00]} 2. g3 {[%emt 0:00:00]} d5 {
[%emt 0:00:00]} 3. Bg2 {[%emt 0:00:00]} e6 {[%emt 0:00:00]} 4. O-O {[%emt 0:00:
00]} b5 {[%emt 0:00:00]} 5. d3 {[%emt 0:00:00]} Bb7 {[%emt 0:00:00]} 6. c4 {
[%emt 0:00:00]} a6 {[%emt 0:00:00]} 7. b3 {[%emt 0:00:00]} Be7 {[%emt 0:00:00]}
8. Bb2 {[%emt 0:00:00]} O-O {[%emt 0:00:00]} 9. Nbd2 {[%emt 0:00:00]} c5 {
[%emt 0:00:00]} 10. Rc1 {[%emt 0:00:00]} Nc6 {[%emt 0:00:00]} 11. e3 {[%emt 0:
00:00]} Nb4 {[%emt 0:00:00]} 12. Qe2 {[%emt 0:00:00]} Nxa2 {[%emt 0:00:00]} 13.
Ra1 {[%emt 0:00:00]} Nb4 {[%emt 0:00:00]} 14. d4 {[%emt 0:00:00]} bxc4 {
[%emt 0:00:00]} 15. bxc4 {[%emt 0:00:00]} a5 {[%emt 0:00:00]} 16. Nb3 {[%emt 0:
00:00]} dxc4 {[%emt 0:00:00]} 17. Nxc5 {[%emt 0:00:00]} Bxc5 {[%emt 0:00:00]}
18. dxc5 {[%emt 0:00:00]} Qd3 {[%emt 0:00:00]} 19. Qxd3 {[%emt 0:00:00]} Nxd3 {
[%emt 0:00:00]} 20. Bd4 {[%emt 0:00:00]} Nd7 {[%emt 0:00:00]} 21. Ra4 {[%emt 0:
00:00]} N3xc5 {[%emt 0:00:00]} 22. Rxc4 {[%emt 0:00:00]} Ba6 {[%emt 0:00:00]}
23. Rxc5 {[%emt 0:00:00]} Nxc5 {[%emt 0:00:00]} 24. Bxc5 {[%emt 0:00:00]} Bxf1
{[%emt 0:00:00]} 25. Kxf1 {[%emt 0:00:00]} Rfc8 {[%emt 0:00:00]} 26. Ba3 {
[%emt 0:00:00]} Rc3 {[%emt 0:00:00]} 27. Bb2 {[%emt 0:00:00]} Rc2 {[%emt 0:00:
00]} 28. Be5 {[%emt 0:00:00]} Rac8 {[%emt 0:00:00]} 29. Nd4 {[%emt 0:00:00]}
Ra2 {[%emt 0:00:00]} 30. Bb7 {[%emt 0:00:00]} Rc1+ {[%emt 0:00:00]} 31. Kg2 {
[%emt 0:00:00]} a4 {[%emt 0:00:00]} 32. h4 {[%emt 0:00:00]} Rb2 {[%emt 0:00:00]
} 33. Bf3 {[%emt 0:00:00]} a3 {[%emt 0:00:00]} 34. Ne2 {[%emt 0:00:00]} Rbc2 {
[%emt 0:00:06]} 35. Nxc1 Rxc1 36. Be2 {[%emt 0:00:00]} f6 {[%emt 0:00:00]} 37.
Bd4 {[%emt 0:00:00]} e5 {[%emt 0:00:00]} 0-1

[Event "Gibraltar Masters 18th"]
[Site "Gibraltar"]
[Date "2020.01.21"]
[Round "1.52"]
[White "Ibarra Jerez, Jose Carlos"]
[Black "Csiki, Endre"]
[Result "1-0"]
[ECO "C44"]
[WhiteElo "2548"]
[BlackElo "2263"]
[PlyCount "127"]
[EventDate "2020.01.21"]
[EventType "swiss"]
[EventRounds "10"]
[EventCountry "GGB"]
[SourceTitle "BritBase"]
[Source "John Saunders"]
[SourceDate "2021.06.05"]
[SourceVersion "1"]
[SourceVersionDate "2021.06.05"]
[SourceQuality "1"]
[TimeControl "40/100:0"]
[WhiteClock "0:14:42"]
[BlackClock "0:23:20"]

1. e4 {[%emt 0:00:00]} e5 {[%emt 0:00:00]} 2. Nf3 {[%emt 0:00:00]} Nc6 {
[%emt 0:00:00]} 3. c3 {[%emt 0:00:00]} Nf6 {[%emt 0:00:00]} 4. d4 {[%emt 0:00:
00]} exd4 {[%emt 0:00:00]} 5. e5 {[%emt 0:00:00]} Nd5 {[%emt 0:00:00]} 6. Qb3 {
[%emt 0:00:00]} Nb6 {[%emt 0:00:00]} 7. cxd4 {[%emt 0:00:00]} Bb4+ {[%emt 0:00:
00]} 8. Bd2 {[%emt 0:00:00]} Bxd2+ {[%emt 0:00:00]} 9. Nbxd2 {[%emt 0:00:00]}
d6 {[%emt 0:00:00]} 10. Bb5 {[%emt 0:00:00]} O-O {[%emt 0:00:00]} 11. Bxc6 {
[%emt 0:00:00]} bxc6 {[%emt 0:00:00]} 12. O-O {[%emt 0:00:00]} Be6 {[%emt 0:00:
00]} 13. Qc2 {[%emt 0:00:00]} Bd5 {[%emt 0:00:00]} 14. Ne4 {[%emt 0:00:00]} h6
{[%emt 0:00:00]} 15. Nfd2 {[%emt 0:00:00]} dxe5 {[%emt 0:00:00]} 16. dxe5 {
[%emt 0:00:00]} Bxe4 {[%emt 0:00:00]} 17. Nxe4 {[%emt 0:00:00]} Qd4 {[%emt 0:
00:00]} 18. e6 {[%emt 0:00:00]} fxe6 {[%emt 0:00:00]} 19. b3 {[%emt 0:00:00]}
Nd5 {[%emt 0:00:00]} 20. Rad1 {[%emt 0:00:00]} Qe5 {[%emt 0:00:00]} 21. Rfe1 {
[%emt 0:00:00]} Qf5 {[%emt 0:00:00]} 22. Qxc6 {[%emt 0:00:00]} Nf4 {[%emt 0:00:
00]} 23. Ng3 {[%emt 0:00:00]} Qf6 {[%emt 0:00:00]} 24. Qe4 {[%emt 0:00:00]}
Rad8 {[%emt 0:00:00]} 25. Rxd8 {[%emt 0:00:00]} Rxd8 {[%emt 0:00:00]} 26. h3 {
[%emt 0:00:00]} Qd4 {[%emt 0:00:00]} 27. Qxd4 {[%emt 0:00:00]} Rxd4 {[%emt 0:
00:00]} 28. Ne2 {[%emt 0:00:00]} Re4 {[%emt 0:00:00]} 29. Kf1 {[%emt 0:00:00]}
Nd5 {[%emt 0:00:00]} 30. Rc1 {[%emt 0:00:00]} Rb4 {[%emt 0:00:00]} 31. Rc5 {
[%emt 0:00:00]} Rb6 {[%emt 0:00:00]} 32. Nd4 {[%emt 0:00:00]} Kf7 {[%emt 0:00:
00]} 33. Nb5 {[%emt 0:00:00]} Rb7 {[%emt 0:00:00]} 34. Nc3 {[%emt 0:00:00]} Nf6
{[%emt 0:00:00]} 35. Ra5 {[%emt 0:00:03]} Ke7 {[%emt 0:00:00]} 36. Ra6 {
[%emt 0:00:18]} Nd7 {[%emt 0:00:00]} 37. Ne4 {[%emt 0:00:00]} Nb8 {[%emt 0:00:
00]} 38. Ra4 {[%emt 0:00:01]} Nd7 {[%emt 0:00:00]} 39. Ke2 {[%emt 0:00:29]} c5
{[%emt 0:00:00]} 40. Ra5 {[%emt 0:00:11]} Rc7 {[%emt 0:00:00]} 41. Kd3 {
[%emt 0:00:00]} e5 {[%emt 0:00:00]} 42. a4 {[%emt 0:00:00]} Ke6 {[%emt 0:00:00]
} 43. Ra6+ {[%emt 0:00:00]} Ke7 {[%emt 0:00:00]} 44. Ra5 {[%emt 0:00:00]} Ke6 {
[%emt 0:00:00]} 45. h4 {[%emt 0:00:00]} Ke7 {[%emt 0:00:00]} 46. f3 {[%emt 0:
00:00]} Ke6 {[%emt 0:00:00]} 47. Ra6+ {[%emt 0:00:00]} Ke7 {[%emt 0:00:00]} 48.
Ra5 {[%emt 0:00:00]} Ke6 {[%emt 0:00:00]} 49. g3 {[%emt 0:00:00]} Ke7 {[%emt 0:
00:00]} 50. Kc3 {[%emt 0:00:00]} Ke6 {[%emt 0:00:00]} 51. Ra6+ {[%emt 0:00:00]}
Ke7 {[%emt 0:00:00]} 52. h5 {[%emt 0:00:00]} Nb6 {[%emt 0:00:00]} 53. Ra5 {
[%emt 0:00:00]} Nd7 {[%emt 0:00:00]} 54. g4 {[%emt 0:00:00]} Ke6 {[%emt 0:00:
00]} 55. Ra6+ {[%emt 0:00:00]} Ke7 {[%emt 0:00:00]} 56. Nd6 {[%emt 0:00:00]}
Nb8 {[%emt 0:00:00]} 57. Nf5+ {[%emt 0:00:00]} Kf8 {[%emt 0:00:00]} 58. Rg6 {
[%emt 0:00:00]} Rf7 {[%emt 0:00:00]} 59. Kc4 {[%emt 0:00:00]} Nd7 {[%emt 0:00:
00]} 60. Re6 {[%emt 0:00:00]} Rf6 {[%emt 0:00:00]} 61. Rxf6+ {[%emt 0:00:00]}
Nxf6 {[%emt 0:00:00]} 62. Ng3 {[%emt 0:00:00]} Nd7 {[%emt 0:00:00]} 63. Ne4 {
[%emt 0:00:34]} Ke7 {[%emt 0:00:00]} 64. Kd5 {[%emt 0:00:00]} 1-0

[Event "Gibraltar Masters 18th"]
[Site "Gibraltar"]
[Date "2020.01.21"]
[Round "1.53"]
[White "Vedder, Richard"]
[Black "Ali Marandi, Cemil Can"]
[Result "0-1"]
[ECO "D27"]
[WhiteElo "2263"]
[BlackElo "2546"]
[PlyCount "92"]
[EventDate "2020.01.21"]
[EventType "swiss"]
[EventRounds "10"]
[EventCountry "GGB"]
[SourceTitle "BritBase"]
[Source "John Saunders"]
[SourceDate "2021.06.05"]
[SourceVersion "1"]
[SourceVersionDate "2021.06.05"]
[SourceQuality "1"]
[TimeControl "40/100:0"]
[WhiteClock "0:46:23"]
[BlackClock "1:04:14"]

1. d4 {[%emt 0:00:00]} d5 {[%emt 0:00:00]} 2. c4 {[%emt 0:00:00]} c6 {[%emt 0:
00:00]} 3. Nf3 {[%emt 0:00:00]} Nf6 {[%emt 0:00:00]} 4. Nc3 {[%emt 0:00:00]} e6
{[%emt 0:00:00]} 5. e3 {[%emt 0:00:00]} a6 {[%emt 0:00:00]} 6. Bd3 {[%emt 0:00:
00]} dxc4 {[%emt 0:00:00]} 7. Bxc4 {[%emt 0:00:00]} b5 {[%emt 0:00:00]} 8. Bd3
{[%emt 0:00:00]} c5 {[%emt 0:00:00]} 9. O-O {[%emt 0:00:00]} Bb7 {[%emt 0:00:
00]} 10. dxc5 {[%emt 0:00:00]} Bxc5 {[%emt 0:00:00]} 11. Qe2 {[%emt 0:00:00]}
Nbd7 {[%emt 0:00:00]} 12. Rd1 {[%emt 0:00:00]} Qb8 {[%emt 0:00:00]} 13. Bd2 {
[%emt 0:00:00]} O-O {[%emt 0:00:00]} 14. Rac1 {[%emt 0:00:00]} Rd8 {[%emt 0:00:
00]} 15. Be1 {[%emt 0:00:00]} Bd6 {[%emt 0:00:00]} 16. h3 {[%emt 0:00:00]} Nc5
{[%emt 0:00:00]} 17. Bc2 {[%emt 0:00:00]} h6 {[%emt 0:00:00]} 18. Nd4 {[%emt 0:
00:00]} Bf8 {[%emt 0:00:00]} 19. Nb3 {[%emt 0:00:00]} Nxb3 {[%emt 0:00:00]} 20.
Bxb3 {[%emt 0:00:00]} Qa7 {[%emt 0:00:00]} 21. Rxd8 {[%emt 0:00:00]} Rxd8 {
[%emt 0:00:00]} 22. Rd1 {[%emt 0:00:00]} Rc8 {[%emt 0:00:00]} 23. a3 {[%emt 0:
00:00]} Qa8 {[%emt 0:00:00]} 24. Qf1 {[%emt 0:00:00]} Bc5 {[%emt 0:00:00]} 25.
Ne2 {[%emt 0:00:00]} a5 {[%emt 0:00:00]} 26. Bc3 {[%emt 0:00:00]} Ne4 {[%emt 0:
00:00]} 27. Bd4 {[%emt 0:00:00]} b4 {[%emt 0:00:00]} 28. f3 {[%emt 0:00:00]}
Bxd4 {[%emt 0:00:00]} 29. Nxd4 {[%emt 0:00:00]} Nc5 {[%emt 0:00:00]} 30. Bc4 {
[%emt 0:00:00]} Na4 {[%emt 0:00:00]} 31. Rd2 {[%emt 0:00:00]} Nb6 {[%emt 0:00:
00]} 32. Be2 {[%emt 0:00:00]} Nd5 {[%emt 0:00:00]} 33. Qf2 {[%emt 0:00:00]} Qa7
{[%emt 0:00:00]} 34. g3 {[%emt 0:00:00]} bxa3 {[%emt 0:00:00]} 35. bxa3 {
[%emt 0:00:00]} Qc5 {[%emt 0:00:00]} 36. Nb5 {[%emt 0:00:00]} Nxe3 {[%emt 0:00:
00]} 37. Rd3 {[%emt 0:00:00]} Nd5 {[%emt 0:00:00]} 38. Qxc5 {[%emt 0:00:00]}
Rxc5 {[%emt 0:00:00]} 39. Rb3 {[%emt 0:00:00]} a4 {[%emt 0:00:00]} 40. Rb2 {
[%emt 0:00:00]} Ba6 {[%emt 0:00:00]} 41. Nd4 {[%emt 0:00:00]} Rc1+ {[%emt 0:00:
00]} 42. Kf2 {[%emt 0:00:00]} Bxe2 {[%emt 0:00:00]} 43. Kxe2 {[%emt 0:00:00]}
Rc3 {[%emt 0:00:00]} 44. Nb5 {[%emt 0:00:00]} Re3+ {[%emt 0:00:00]} 45. Kf2 {
[%emt 0:00:00]} Kf8 {[%emt 0:00:00]} 46. h4 {[%emt 0:00:00]} Rb3 {[%emt 0:00:
00]} 0-1

[Event "Gibraltar Masters 18th"]
[Site "Gibraltar"]
[Date "2020.01.21"]
[Round "1.54"]
[White "Kaidanov, Gregory"]
[Black "Benmesbah, Natacha"]
[Result "1-0"]
[ECO "A35"]
[WhiteElo "2546"]
[BlackElo "2258"]
[PlyCount "89"]
[EventDate "2020.01.21"]
[EventType "swiss"]
[EventRounds "10"]
[EventCountry "GGB"]
[SourceTitle "BritBase"]
[Source "John Saunders"]
[SourceDate "2021.06.05"]
[SourceVersion "1"]
[SourceVersionDate "2021.06.05"]
[SourceQuality "1"]
[TimeControl "40/100:0"]
[WhiteClock "0:34:24"]
[BlackClock "0:39:32"]

1. Nf3 {[%emt 0:00:00]} c5 {[%emt 0:00:00]} 2. c4 {[%emt 0:00:00]} Nc6 {
[%emt 0:00:00]} 3. Nc3 {[%emt 0:00:00]} g6 {[%emt 0:00:00]} 4. e3 {[%emt 0:00:
00]} Nf6 {[%emt 0:00:00]} 5. d4 {[%emt 0:00:00]} cxd4 {[%emt 0:00:00]} 6. exd4
{[%emt 0:00:00]} d5 {[%emt 0:00:00]} 7. cxd5 {[%emt 0:00:00]} Nxd5 {[%emt 0:00:
00]} 8. Qb3 {[%emt 0:00:00]} e6 {[%emt 0:00:00]} 9. Bb5 {[%emt 0:00:00]} Bg7 {
[%emt 0:00:00]} 10. Bg5 {[%emt 0:00:00]} Qd6 {[%emt 0:00:00]} 11. O-O {[%emt 0:
00:00]} Nxc3 {[%emt 0:00:00]} 12. bxc3 {[%emt 0:00:00]} O-O {[%emt 0:00:00]}
13. Rfd1 {[%emt 0:00:00]} Na5 {[%emt 0:00:00]} 14. Qb4 {[%emt 0:00:00]} Qc7 {
[%emt 0:00:00]} 15. Be7 {[%emt 0:00:00]} a6 {[%emt 0:00:00]} 16. Bd6 {[%emt 0:
00:00]} Qd8 {[%emt 0:00:00]} 17. Be7 {[%emt 0:00:00]} Qc7 {[%emt 0:00:00]} 18.
Bd6 {[%emt 0:00:00]} Qd8 {[%emt 0:00:00]} 19. Be2 {[%emt 0:00:00]} Re8 {
[%emt 0:00:00]} 20. c4 {[%emt 0:00:00]} Nc6 {[%emt 0:00:00]} 21. Qc5 {[%emt 0:
00:00]} Bd7 {[%emt 0:00:00]} 22. Rab1 {[%emt 0:00:00]} Rc8 {[%emt 0:00:00]} 23.
Qa3 {[%emt 0:00:00]} Na5 {[%emt 0:00:00]} 24. Bc5 {[%emt 0:00:00]} b5 {[%emt 0:
00:00]} 25. cxb5 {[%emt 0:00:00]} axb5 {[%emt 0:00:00]} 26. Bxb5 {[%emt 0:00:
00]} Bxb5 {[%emt 0:00:00]} 27. Rxb5 {[%emt 0:00:00]} Nc4 {[%emt 0:00:00]} 28.
Qb3 {[%emt 0:00:00]} Nd6 {[%emt 0:00:00]} 29. Bxd6 {[%emt 0:00:00]} Qxd6 {
[%emt 0:00:00]} 30. g3 {[%emt 0:00:00]} Ra8 {[%emt 0:00:00]} 31. a4 {[%emt 0:
00:00]} Ra7 {[%emt 0:00:00]} 32. Ne5 {[%emt 0:00:00]} Bxe5 {[%emt 0:00:00]} 33.
dxe5 {[%emt 0:00:00]} Qc6 {[%emt 0:00:00]} 34. a5 {[%emt 0:00:00]} Rea8 {
[%emt 0:00:00]} 35. Qb4 {[%emt 0:00:00]} Qc7 {[%emt 0:00:00]} 36. Rc5 {[%emt 0:
00:00]} Qb8 {[%emt 0:00:00]} 37. Qc3 {[%emt 0:00:00]} Qb7 {[%emt 0:00:07]} 38.
h4 {[%emt 0:00:00]} h5 {[%emt 0:00:00]} 39. Kh2 {[%emt 0:00:00]} Rb8 {[%emt 0:
00:00]} 40. Rd2 {[%emt 0:00:00]} Kg7 {[%emt 0:00:30]} 41. Qd4 {[%emt 0:00:00]}
Ra6 {[%emt 0:00:00]} 42. Qf4 {[%emt 0:00:00]} Qe7 {[%emt 0:00:00]} 43. Rd6 {
[%emt 0:00:00]} Ra7 {[%emt 0:00:00]} 44. a6 {[%emt 0:00:00]} Rb2 {[%emt 0:00:
00]} 45. Rc8 {[%emt 0:00:00]} 1-0

[Event "Gibraltar Masters 18th"]
[Site "Gibraltar"]
[Date "2020.01.21"]
[Round "1.55"]
[White "Vidic, Teja"]
[Black "Studer, Noel"]
[Result "0-1"]
[ECO "C07"]
[WhiteElo "2252"]
[BlackElo "2546"]
[PlyCount "72"]
[EventDate "2020.01.21"]
[EventType "swiss"]
[EventRounds "10"]
[EventCountry "GGB"]
[SourceTitle "BritBase"]
[Source "John Saunders"]
[SourceDate "2021.06.05"]
[SourceVersion "1"]
[SourceVersionDate "2021.06.05"]
[SourceQuality "1"]
[TimeControl "40/100:0"]
[WhiteClock "0:00:32"]
[BlackClock "0:07:07"]

1. e4 {[%emt 0:00:00]} e6 {[%emt 0:00:00]} 2. d4 {[%emt 0:00:00]} d5 {[%emt 0:
00:00]} 3. Nd2 {[%emt 0:00:00]} c5 {[%emt 0:00:00]} 4. exd5 {[%emt 0:00:00]}
Qxd5 {[%emt 0:00:00]} 5. Ngf3 {[%emt 0:00:00]} cxd4 {[%emt 0:00:00]} 6. Bc4 {
[%emt 0:00:00]} Qd7 {[%emt 0:00:00]} 7. O-O {[%emt 0:00:00]} Nc6 {[%emt 0:00:
00]} 8. Nb3 {[%emt 0:00:00]} a6 {[%emt 0:00:00]} 9. a4 {[%emt 0:00:00]} Nf6 {
[%emt 0:00:00]} 10. Qe2 {[%emt 0:00:00]} Bd6 {[%emt 0:00:00]} 11. Rd1 {[%emt 0:
00:00]} O-O {[%emt 0:00:00]} 12. Nbxd4 {[%emt 0:00:00]} e5 {[%emt 0:00:00]} 13.
Nxc6 {[%emt 0:00:00]} Qxc6 {[%emt 0:00:00]} 14. Bg5 {[%emt 0:00:00]} Bc7 {
[%emt 0:00:00]} 15. Bxf6 {[%emt 0:00:00]} Qxf6 {[%emt 0:00:00]} 16. Bd5 {
[%emt 0:00:00]} Rb8 {[%emt 0:00:00]} 17. h3 {[%emt 0:00:00]} Re8 {[%emt 0:00:
00]} 18. Qc4 {[%emt 0:00:00]} Re7 {[%emt 0:00:00]} 19. Nd2 {[%emt 0:00:00]} Bf5
{[%emt 0:00:00]} 20. Ne4 {[%emt 0:00:00]} Qg6 {[%emt 0:00:00]} 21. Ra3 {
[%emt 0:00:00]} b5 {[%emt 0:00:00]} 22. axb5 {[%emt 0:00:00]} axb5 {[%emt 0:00:
00]} 23. Qe2 {[%emt 0:00:00]} Kh8 {[%emt 0:00:00]} 24. Rc3 {[%emt 0:00:00]}
Bxe4 {[%emt 0:00:00]} 25. Bxe4 {[%emt 0:00:00]} f5 {[%emt 0:00:00]} 26. Bc6 {
[%emt 0:00:00]} b4 {[%emt 0:00:00]} 27. Rc5 {[%emt 0:00:00]} e4 {[%emt 0:00:00]
} 28. Bd7 {[%emt 0:00:00]} Bb6 {[%emt 0:00:00]} 29. Bxf5 {[%emt 0:00:00]} Qf6 {
[%emt 0:00:00]} 30. Rcd5 {[%emt 0:00:00]} e3 {[%emt 0:00:00]} 31. f3 {[%emt 0:
00:00]} Bc7 {[%emt 0:08:51]} 32. Qb5 {[%emt 0:00:00]} g6 {[%emt 0:00:00]} 33.
Qd3 {[%emt 0:00:54]} gxf5 {[%emt 0:00:00]} 34. Rxf5 {[%emt 0:00:00]} Qh4 {
[%emt 0:00:00]} 35. Qe2 {[%emt 0:00:11]} Qg3 {[%emt 0:00:00]} 36. Kf1 {[%emt 0:
00:03]} Qh2 {[%emt 0:00:00]} 0-1

[Event "Gibraltar Masters 18th"]
[Site "Gibraltar"]
[Date "2020.01.21"]
[Round "1.56"]
[White "Werle, Jan"]
[Black "Sousa, Ludy Helsio Paulo"]
[Result "1-0"]
[ECO "A37"]
[WhiteElo "2545"]
[BlackElo "2247"]
[PlyCount "93"]
[EventDate "2020.01.21"]
[EventType "swiss"]
[EventRounds "10"]
[EventCountry "GGB"]
[SourceTitle "BritBase"]
[Source "John Saunders"]
[SourceDate "2021.06.05"]
[SourceVersion "1"]
[SourceVersionDate "2021.06.05"]
[SourceQuality "1"]
[TimeControl "40/100:0"]
[WhiteClock "0:13:17"]
[BlackClock "0:10:13"]

1. Nf3 {[%emt 0:00:00]} c5 {[%emt 0:00:00]} 2. g3 {[%emt 0:00:00]} g6 {[%emt 0:
00:00]} 3. Bg2 {[%emt 0:00:00]} Bg7 {[%emt 0:00:00]} 4. O-O {[%emt 0:00:00]}
Nc6 {[%emt 0:00:00]} 5. c4 {[%emt 0:00:00]} e5 {[%emt 0:02:16]} 6. Nc3 {
[%emt 0:00:00]} Nge7 {[%emt 0:00:00]} 7. d3 {[%emt 0:00:00]} d6 {[%emt 0:00:00]
} 8. Ne1 {[%emt 0:00:00]} O-O {[%emt 0:00:00]} 9. Nc2 {[%emt 0:00:00]} Kh8 {
[%emt 0:00:00]} 10. Rb1 {[%emt 0:00:00]} Rb8 {[%emt 0:00:00]} 11. b4 {[%emt 0:
00:00]} b6 {[%emt 0:00:00]} 12. bxc5 {[%emt 0:00:00]} dxc5 {[%emt 0:00:00]} 13.
Ne3 {[%emt 0:00:00]} Be6 {[%emt 0:00:00]} 14. Ned5 {[%emt 0:00:00]} Qd7 {
[%emt 0:00:00]} 15. a4 {[%emt 0:00:00]} Bh3 {[%emt 0:00:00]} 16. Nxe7 {[%emt 0:
00:00]} Nxe7 {[%emt 0:00:00]} 17. a5 {[%emt 0:00:00]} Bxg2 {[%emt 0:00:00]} 18.
Kxg2 {[%emt 0:00:00]} h5 {[%emt 0:00:00]} 19. f3 {[%emt 0:00:00]} f5 {[%emt 0:
00:00]} 20. axb6 {[%emt 0:00:00]} axb6 {[%emt 0:00:00]} 21. Bd2 {[%emt 0:00:00]
} Bf6 {[%emt 0:00:00]} 22. Qc1 {[%emt 0:00:00]} Kh7 {[%emt 0:00:00]} 23. Bh6 {
[%emt 0:00:00]} Rf7 {[%emt 0:00:00]} 24. Be3 {[%emt 0:00:00]} Qc6 {[%emt 0:00:
00]} 25. Rb5 {[%emt 0:00:00]} Ra8 {[%emt 0:00:00]} 26. Bg5 {[%emt 0:00:00]}
Bxg5 {[%emt 0:00:00]} 27. Qxg5 {[%emt 0:00:00]} Ra3 {[%emt 0:00:00]} 28. Qd2 {
[%emt 0:00:00]} Nc8 {[%emt 0:00:00]} 29. Nd5 {[%emt 0:00:00]} Rfa7 {[%emt 0:00:
00]} 30. Rfb1 {[%emt 0:00:00]} R7a6 {[%emt 0:00:00]} 31. R5b2 {[%emt 0:00:00]}
Kg7 {[%emt 0:00:00]} 32. h3 {[%emt 0:00:00]} Ra1 {[%emt 0:00:00]} 33. Qc3 {
[%emt 0:00:00]} Qd6 {[%emt 0:00:00]} 34. Rxa1 {[%emt 0:00:00]} Rxa1 {[%emt 0:
00:00]} 35. Nxb6 {[%emt 0:00:00]} Nxb6 {[%emt 0:00:00]} 36. Rxb6 {[%emt 0:00:
00]} Qxb6 {[%emt 0:00:00]} 37. Qxa1 {[%emt 0:00:00]} Qd6 {[%emt 0:00:00]} 38.
f4 {[%emt 0:00:00]} Qd4 {[%emt 0:00:00]} 39. Qxd4 {[%emt 0:00:00]} exd4 {
[%emt 0:00:00]} 40. Kf3 {[%emt 0:00:00]} h4 {[%emt 0:00:00]} 41. gxh4 {[%emt 0:
00:00]} Kf6 {[%emt 0:00:00]} 42. e3 {[%emt 0:00:00]} Ke6 {[%emt 0:00:00]} 43.
exd4 {[%emt 0:00:00]} cxd4 {[%emt 0:00:00]} 44. Kg3 {[%emt 0:00:00]} Kf6 {
[%emt 0:00:00]} 45. h5 {[%emt 0:00:00]} gxh5 {[%emt 0:00:00]} 46. Kh4 {[%emt 0:
00:00]} Kg6 {[%emt 0:00:00]} 47. c5 {[%emt 0:00:00]} 1-0